fUSD/lending_fUSD_20240122
["ID","MTS","AMOUNT","RATE_DAILY","PERIOD"]
[312514574,1705938642031,-703.9535417,0.00044986,4]
[312514576,1705938642041,-13115.0000007,0.00045,2]
[312514578,1705938642051,-7678.34016626,0.00045,14]
[312514580,1705938642062,-205.0,0.00045,10]
[312514582,1705938642072,-329.95,0.00045017,2]
[312514584,1705938642082,-1000.0,0.00045205,2]
[312514586,1705938642091,-152.21,0.000453,5]
[312514588,1705938642101,-152.21,0.000453,5]
[312514590,1705938642111,-152.21,0.000453,5]
[312514592,1705938642121,-152.21,0.000453,5]
[312514594,1705938642131,-152.21,0.000453,5]
[312514596,1705938642141,-152.21,0.000453,5]
[312514599,1705938642151,-152.21,0.000453,5]
[312514601,1705938642160,-152.21,0.000453,5]
[312514603,1705938642170,-152.21,0.000453,5]
[312514605,1705938642180,-152.21,0.000453,5]
[312514607,1705938642189,-213.61,0.00045945,2]
[312514609,1705938642199,-360.02453104,0.00046,22]
[312514611,1705938642209,-1995.22,0.00046,2]
[312514613,1705938642218,-2176.22862749,0.00046204,21]
[312514615,1705938642228,-150.18501678,0.00046567,30]
[312514617,1705938642238,-1000.0,0.00046575,2]
[312514619,1705938642248,-567.90328427,0.00046895,2]
[312514621,1705938642257,-271.19389066,0.00046895,2]
[312514623,1705938642267,-486728.73280836,0.000469,3]
[312514626,1705938642278,-203.12390135,0.00046998,4]
[312514628,1705938642288,-240.38052983,0.00047,23]
[312514630,1705938642298,-237.55,0.00047,7]
[312514632,1705938642308,-150.18501678,0.00047018,30]
[312514634,1705938642318,-2054.22,0.00047135,2]
[312514636,1705938642328,-155.13322606,0.00047259,30]
[312514638,1705938642338,-2176.22862749,0.00047486,23]
[312514640,1705938642348,-150.18501678,0.00047641,30]
[312514642,1705938642358,-474.57,0.00047821,15]
[312514644,1705938642368,-1123.9,0.00047945,2]
[312514646,1705938642378,-155.13322606,0.00047947,30]
[312514648,1705938642391,-240.38052983,0.00048,24]
[312514650,1705938642401,-205.0,0.00048,13]
[312514653,1705938642411,-213.61,0.00048209,2]
[312514655,1705938642421,-1006.55414807,0.000483,4]
[312514657,1705938642431,-666.0,0.000485,4]
[312514659,1705938642441,-150.18501678,0.00048749,30]
[312514690,1705938642689,-2176.22862749,0.00048769,25]
[312514694,1705938642752,-166.61407178,0.00048802,30]
[312514696,1705938642762,-100000.0,0.00049,39]
[312514698,1705938642771,-240.38052983,0.00049,25]
[312514700,1705938642781,-328.88565953,0.00049,5]
[312514702,1705938642791,-2140.2,0.00049041,2]
[312514704,1705938642800,-255.0,0.00049203,12]
[312514707,1705938642813,-255.0,0.00049252,12]
[312514709,1705938642823,-1000.0,0.000493,2]
[312514713,1705938642832,-150.18501678,0.00049477,30]
[312514716,1705938642841,-155.57322914,0.00049482,30]
[312514718,1705938642851,-166.26,0.000496,7]
[312514720,1705938642860,-24971.0,0.000497,2]
[312514722,1705938642869,-154.20031,0.000498,2]
[312514724,1705938642878,-34068.4349754,0.000499,120]
[312514726,1705938642888,-4600.0,0.000499,18]
[312514728,1705938642897,-152.21,0.000499,6]
[312514730,1705938642906,-152.21,0.000499,6]
[312514732,1705938642915,-152.21,0.000499,6]
[312514734,1705938642925,-152.21,0.000499,6]
[312514736,1705938642934,-152.21,0.000499,6]
[312514739,1705938642943,-152.21,0.000499,6]
[312514742,1705938642951,-152.21,0.000499,6]
[312514744,1705938642961,-152.21,0.000499,6]
[312514747,1705938642970,-152.21,0.000499,6]
[312514750,1705938642979,-152.21,0.000499,6]
[312514753,1705938642988,-150.69709911,0.0004995,6]
[312514756,1705938642998,-177.10334841,0.00049975,30]
[312514761,1705938643007,-360.28881408,0.00049997,2]
[312514766,1705938643017,-150.0,0.00049999,5]
[312514770,1705938643027,-167.32409003,0.00049999,5]
[312514773,1705938643036,-100000.0,0.0005,40]
[312514776,1705938643045,-336.23242113,0.0005,4]
[312514779,1705938643056,-3691.43118408,0.0005,4]
[312514782,1705938643066,-155.0,0.0005,4]
[312514785,1705938643075,-155.0,0.0005,4]
[312514787,1705938643084,-228.57864467,0.0005,4]
[312514789,1705938643093,-1467.05983655,0.0005,10]
[312514791,1705938643102,-45184.0,0.0005,13]
[312514793,1705938643111,-399.999999,0.0005,7]
[312514795,1705938643121,-495900.06930771,0.0005,120]
[312514798,1705938643130,-584.88523169,0.0005,4]
[312514801,1705938643140,-2054.0,0.0005,60]
[312514804,1705938643150,-502.15618176,0.0005,10]
[312514807,1705938643159,-10000.0,0.0005,60]
[312514810,1705938643169,-10000.0,0.0005,60]
[312514813,1705938643179,-10000.0,0.0005,60]
[312514815,1705938643188,-10000.0,0.0005,60]
[312514817,1705938643197,-10000.0,0.0005,60]
[312514819,1705938643207,-10000.0,0.0005,60]
[312514822,1705938643217,-11130.0,0.0005,60]
[312514823,1705938643226,-3731.0,0.0005,60]
[312514825,1705938643237,-2923.0,0.0005,60]
[312514828,1705938643246,-5330.0,0.0005,60]
[312514830,1705938643255,-622.61415852,0.0005,60]
[312514832,1705938643265,-10035.57176602,0.0005,90]
[312514834,1705938643274,-7212.07790826,0.0005,30]
[312514836,1705938643283,-2223.03677783,0.0005,15]
[312514837,1705938643293,-1205.98651319,0.0005,120]
[312514840,1705938643304,-2223.03677783,0.0005,15]
[312514841,1705938643313,-1205.98651319,0.0005,120]
[312514843,1705938643322,-2223.03677783,0.0005,15]
[312514845,1705938643331,-152.05,0.0005,2]
[312514847,1705938643340,-400.0,0.00050027,120]
[312514849,1705938643350,-2176.22862749,0.00050052,26]
[312514851,1705938643359,-1941.0,0.000501,7]
[312514853,1705938643370,-106329.75113549,0.000503,2]
[312514855,1705938643381,-6635.0,0.00050472,30]
[312514857,1705938643390,-246.81922604,0.00050472,30]
[312514859,1705938643399,-350.0,0.00050472,30]
[312514860,1705938643409,-433.0,0.00050472,30]
[312514861,1705938643418,-213.61,0.00050473,2]
[312514862,1705938643427,-150.18501678,0.00050905,60]
[312514864,1705938643436,-6635.0,0.00050977,30]
[312514866,1705938643446,-350.0,0.00050977,30]
[312514868,1705938643457,-433.0,0.00050977,30]
[312514870,1705938643466,-172.21890678,0.00050995,120]
[312514872,1705938643476,-360.28881408,0.00050997,2]
[312514874,1705938643485,-150.0,0.00050999,6]
[312514875,1705938643494,-167.32409003,0.00050999,6]
[312514878,1705938643503,-100000.0,0.00051,41]
[312514879,1705938643513,-511.92280892,0.00051,4]
[312514881,1705938643522,-200.0,0.00051,2]
[312514883,1705938643531,-240.38052983,0.00051,27]
[312514886,1705938643541,-170000.0,0.00051,120]
[312514888,1705938643551,-205.0,0.00051,25]
[312514891,1705938643561,-150.18501678,0.00051114,60]
[312514893,1705938643570,-2176.22862749,0.00051335,28]
[312514895,1705938643579,-6635.0,0.00051482,30]
[312514897,1705938643589,-350.0,0.00051482,30]
[312514899,1705938643598,-433.0,0.00051482,30]
[312514901,1705938643607,-155.57322914,0.00051493,60]
[312514903,1705938643616,-155.13322606,0.00051517,60]
[312514905,1705938643625,-474.57,0.00051557,120]
[312514906,1705938643635,-400.0,0.00051699,120]
[312514908,1705938643644,-150.18501678,0.00051821,60]
[312514911,1705938643653,-496.0,0.000519,30]
[312514912,1705938643662,-6635.0,0.00051986,30]
[312514915,1705938643671,-350.0,0.00051986,30]
[312514917,1705938643680,-433.0,0.00051986,30]
[312514919,1705938643690,-200.0,0.00051987,85]
[312514920,1705938643699,-100000.0,0.00052,42]
[312514923,1705938643709,-2087.26853491,0.00052,2]
[312514925,1705938643718,-8340.08350234,0.00052,14]
[312514927,1705938643727,-10122.7324667,0.00052,120]
[312514928,1705938643736,-691.699897,0.00052054,120]
[312514931,1705938643746,-5180.58025218,0.00052054,2]
[312514933,1705938643755,-693.213,0.00052055,120]
[312514935,1705938643765,-155.13322606,0.00052082,60]
[312514937,1705938643775,-501.37,0.00052198,5]
[312514939,1705938643784,-1793.97,0.00052216,2]
[312514941,1705938643794,-150.18501679,0.00052292,60]
[312514943,1705938643804,-208.13,0.00052393,2]
[312514945,1705938643813,-155.13322606,0.00052459,60]
[312514947,1705938643822,-2176.22862749,0.00052617,29]
[312514949,1705938643833,-213.61,0.00052737,2]
[312514951,1705938643842,-208.13,0.00052737,2]
[312514953,1705938643852,-900.0,0.000529,19]
[312514955,1705938643861,-2917.64271285,0.00052902,60]
[312514957,1705938643870,-2915.50165889,0.00052906,60]
[312514958,1705938643880,-2916.04825945,0.00052907,60]
[312514960,1705938643890,-2915.61170145,0.00052908,60]
[312514962,1705938643899,-2917.38030901,0.00052909,60]
[312514964,1705938643908,-2916.04585901,0.00052913,60]
[312514966,1705938643918,-2918.11078021,0.00052919,60]
[312514968,1705938643927,-2917.46632696,0.00052927,60]
[312514970,1705938643937,-2920.759833,0.00052931,60]
[312514972,1705938643946,-2919.13199738,0.00052939,60]
[312514975,1705938643955,-776.01934328,0.0005295,60]
[312514977,1705938643965,-2924.27787021,0.00052952,60]
[312514978,1705938643975,-2919.72864894,0.0005296,60]
[312514981,1705938643985,-2917.65618117,0.00052961,60]
[312514983,1705938643995,-2916.35079788,0.00052969,60]
[312514985,1705938644004,-2927.63093741,0.0005297,60]
[312514987,1705938644013,-2915.86412362,0.00052973,60]
[312514989,1705938644023,-2919.75659806,0.0005298,60]
[312514990,1705938644032,-2920.49166686,0.00052981,60]
[312514991,1705938644041,-2917.00920192,0.00052984,60]
[312514992,1705938644050,-2922.34683091,0.00052987,60]
[312514993,1705938644064,-200.0,0.00052987,87]
[312514994,1705938644073,-2918.59024837,0.0005299,60]
[312514995,1705938644083,-2915.6338013,0.00052996,60]
[312514996,1705938644092,-150.0,0.00052999,8]
[312514997,1705938644101,-167.32409003,0.00052999,8]
[312514998,1705938644111,-100000.0,0.00053,43]
[312514999,1705938644122,-221.54665037,0.00053,28]
[312515000,1705938644132,-128484.23,0.00053,120]
[312515001,1705938644141,-500000.0,0.00053,120]
[312515002,1705938644151,-500.0,0.00053,11]
[312515003,1705938644161,-360.28881408,0.00053077,2]
[312515004,1705938644171,-200000.0,0.0005308,45]
[312515005,1705938644182,-208.13,0.00053081,2]
[312515006,1705938644192,-200000.0,0.0005326,45]
[312515007,1705938644201,-500.0,0.00053322,5]
[312515008,1705938644212,-335.0,0.00053333,120]
[312515009,1705938644221,-400.0,0.0005337,120]
[312515010,1705938644231,-208.13,0.00053425,2]
[312515011,1705938644240,-151.51646556,0.00053553,58]
[312515012,1705938644249,-1000.79386938,0.00053698,5]
[312515013,1705938644258,-1628.21903543,0.00053698,5]
[312515014,1705938644268,-2877.0,0.000537,117]
[312515015,1705938644277,-208.13,0.00053768,2]
[312515016,1705938644287,-2000.0,0.00053793,3]
[312515017,1705938644296,-150.0,0.00053853,7]
[312515018,1705938644308,-2176.22862749,0.000539,31]
[312515019,1705938644318,-151.0,0.000539,14]
[312515020,1705938644327,-157.28477,0.000539,14]
[312515021,1705938644337,-151.087302,0.000539,14]
[312515022,1705938644346,-151.0,0.000539,14]
[312515023,1705938644356,-151.0,0.000539,14]
[312515024,1705938644365,-151.0,0.000539,14]
[312515025,1705938644374,-900.0,0.000539,19]
[312515026,1705938644386,-567.90328427,0.000539,2]
[312515027,1705938644395,-150.0,0.00053905,7]
[312515028,1705938644404,-150.0,0.00053906,7]
[312515029,1705938644413,-150.0,0.0005396,7]
[312515030,1705938644423,-150.0,0.00053967,7]
[312515031,1705938644435,-150.0,0.00053972,7]
[312515032,1705938644445,-150.0,0.0005398,30]
[312515033,1705938644455,-150.0,0.00053981,7]
[312515034,1705938644466,-200.0,0.00053987,89]
[312515035,1705938644476,-1080.86644224,0.00053997,2]
[312515036,1705938644486,-150.0,0.00053999,9]
[312515037,1705938644494,-167.32409003,0.00053999,9]
[312515038,1705938644503,-150.0,0.00053999,9]
[312515039,1705938644513,-167.32409003,0.00053999,9]
[312515040,1705938644522,-150.0,0.00053999,9]
[312515041,1705938644532,-167.32409003,0.00053999,9]
[312515042,1705938644542,-100000.0,0.00054,44]
[312515043,1705938644555,-5000.0,0.00054,2]
[312515044,1705938644565,-3041.22690926,0.00054,120]
[312515045,1705938644574,-1000000.0,0.00054,120]
[312515046,1705938644584,-450.0,0.00054,120]
[312515047,1705938644593,-54533.31,0.00054,30]
[312515048,1705938644603,-10000.0,0.00054,30]
[312515049,1705938644612,-1000000.0,0.00054,120]
[312515050,1705938644622,-5000.0,0.00054,120]
[312515051,1705938644631,-4976.78834347,0.00054,120]
[312515052,1705938644648,-23.21165653,0.00054,120]
[312515053,1705938644658,-3353.35347817,0.00054,120]
[312515054,1705938644671,-1646.64652183,0.00054,120]
[312515055,1705938644681,-44.45411615,0.00054,120]
[312515056,1705938644711,-4955.54588385,0.00054,120]
[312515057,1705938644720,-5000.0,0.00054,120]
[312515058,1705938644730,-565.00571815,0.00054,120]
[312515059,1705938644743,-480.04587279,0.00054,120]
[312515060,1705938645076,-1420.756,0.0003999,17]
[312515061,1705938645298,-50910.10519114,0.0003999,17]
[312515062,1705938645309,-3246.98812413,0.00048,38]
[312515063,1705938645320,-4077.73920001,0.00048,38]
[312515064,1705938645387,-92675.27267586,0.00048,38]
[312515065,1705938645396,-271.19389066,0.000539,2]
[312515066,1705938645406,-2906.94840906,0.00054,120]
[312515067,1705938645417,-151.0,0.00054,14]
[312515068,1705938645426,-151.0,0.00054,7]
[312515069,1705938645437,-151.0,0.00054,14]
[312515070,1705938645447,-151.0,0.00054,14]
[312515071,1705938645457,-151.0,0.00054,14]
[312515072,1705938645467,-151.0,0.00054,14]
[312515073,1705938645476,-151.0,0.00054,14]
[312515074,1705938645486,-151.0,0.00054,14]
[312515075,1705938645496,-151.0,0.00054,14]
[312515076,1705938645505,-151.0,0.00054,14]
[312515077,1705938645514,-151.0,0.00054,14]
[312515078,1705938645524,-500.0,0.00054,20]
[312515079,1705938645533,-151.0,0.00054,14]
[312515080,1705938645543,-151.0,0.00054,14]
[312515081,1705938645555,-205.0,0.00054,36]
[312515082,1705938645564,-154.319946,0.00054,14]
[312515083,1705938645574,-151.0,0.00054,14]
[312515084,1705938645584,-151.0,0.00054,14]
[312515085,1705938645593,-46723.0,0.00054,90]
[312515086,1705938645602,-162.29091,0.00054,14]
[312515087,1705938645612,-158.310221,0.00054,14]
[312515088,1705938645621,-151.0,0.00054,14]
[312515089,1705938645631,-151.0,0.00054,14]
[312515090,1705938645641,-202.274363,0.00054,14]
[312515091,1705938645652,-155.241368,0.00054,14]
[312515092,1705938645662,-151.0,0.00054,14]
[312515093,1705938645671,-151.0,0.00054,14]
[312515094,1705938645681,-151.0,0.00054,14]
[312515095,1705938645691,-181.192759,0.00054,14]
[312515096,1705938645700,-181.192759,0.00054,14]
[312515097,1705938645709,-150.0,0.00054003,7]
[312515098,1705938645718,-150.0,0.00054009,7]
[312515099,1705938645728,-150.0,0.00054042,7]
[312515100,1705938645737,-150.0,0.00054044,7]
[312515101,1705938645746,-150.0,0.00054045,7]
[312515102,1705938645756,-150.0,0.00054048,7]
[312515103,1705938645765,-150.0,0.00054058,7]
[312515104,1705938645777,-150.0,0.00054074,7]
[312515105,1705938645786,-150.0,0.00054094,7]
[312515106,1705938645796,-150.0,0.00054103,7]
[312515107,1705938645807,-150.0,0.00054105,7]
[312515108,1705938645816,-150.0,0.00054109,7]
[312515109,1705938645826,-150.0,0.00054112,7]
[312515111,1705938645835,-208.13,0.00054112,2]
[312515112,1705938645845,-150.0,0.00054155,7]
[312515114,1705938645855,-150.0,0.00054178,7]
[312515116,1705938645864,-150.0,0.0005418,7]
[312515118,1705938645873,-150.0,0.00054188,7]
[312515119,1705938645883,-150.0,0.00054195,7]
[312515120,1705938645893,-184.47229552,0.00054214,7]
[312515121,1705938645902,-150.0,0.00054224,7]
[312515123,1705938645912,-1500.0,0.0005424,7]
[312515125,1705938645921,-150.0,0.00054255,7]
[312515127,1705938645931,-600.60094,0.00054301,5]
[312515128,1705938645941,-150.0,0.00054327,7]
[312515129,1705938645950,-1053.84916775,0.0005433,7]
[312515130,1705938645960,-500.0,0.00054332,5]
[312515131,1705938645969,-150.0,0.00054337,7]
[312515132,1705938645979,-150.0,0.00054351,7]
[312515133,1705938645989,-150.0,0.00054355,7]
[312515134,1705938645999,-500.0,0.00054378,5]
[312515135,1705938646008,-150.0,0.00054378,7]
[312515136,1705938646017,-150.0,0.00054384,7]
[312515137,1705938646027,-21359.62081838,0.000544,20]
[312515138,1705938646036,-150.0,0.00054401,7]
[312515139,1705938646046,-150.0,0.0005441,7]
[312515140,1705938646057,-1500.0,0.00054412,7]
[312515141,1705938646066,-150.0,0.00054412,7]
[312515142,1705938646076,-2054.61155442,0.00054448,4]
[312515143,1705938646085,-150.0,0.00054451,7]
[312515144,1705938646095,-208.13,0.00054456,2]
[312515145,1705938646104,-150.0,0.00054465,7]
[312515146,1705938646114,-4323.124362,0.00054478,120]
[312515147,1705938646123,-345.849948,0.00054478,120]
[312515148,1705938646133,-13146.38946031,0.000545,120]
[312515149,1705938646142,-158.34,0.000545,7]
[312515150,1705938646152,-158.34,0.000545,7]
[312515151,1705938646161,-158.34,0.000545,7]
[312515152,1705938646170,-152.89,0.000545,8]
[312515153,1705938646180,-152.89,0.000545,8]
[312515154,1705938646190,-152.89,0.000545,8]
[312515155,1705938646199,-152.89,0.000545,8]
[312515156,1705938646208,-152.89,0.000545,8]
[312515157,1705938646218,-152.21,0.000545,8]
[312515158,1705938646228,-152.21,0.000545,8]
[312515159,1705938646238,-152.21,0.000545,8]
[312515160,1705938646248,-152.21,0.000545,8]
[312515161,1705938646257,-152.21,0.000545,8]
[312515162,1705938646267,-152.21,0.000545,8]
[312515163,1705938646276,-152.21,0.000545,8]
[312515164,1705938646285,-152.21,0.000545,8]
[312515165,1705938646295,-152.21,0.000545,8]
[312515166,1705938646306,-152.21,0.000545,8]
[312515167,1705938646315,-152.21,0.000545,8]
[312515168,1705938646324,-150.0,0.00054505,7]
[312515169,1705938646333,-150.0,0.0005451,7]
[312515170,1705938646343,-150.0,0.0005451,7]
[312515171,1705938646353,-150.0,0.00054514,7]
[312515172,1705938646363,-150.0,0.00054525,7]
[312515173,1705938646374,-505.72988094,0.00054526,30]
[312515174,1705938646385,-150.0,0.00054537,7]
[312515175,1705938646394,-150.0,0.00054566,7]
[312515176,1705938646403,-150.0,0.00054589,7]
[312515177,1705938646413,-150.0,0.00054597,7]
[312515178,1705938646422,-322.06587766,0.000546,120]
[312515179,1705938646433,-150.0,0.000546,7]
[312515180,1705938646442,-150.0,0.00054619,7]
[312515181,1705938646452,-150.0,0.00054623,7]
[312515182,1705938646461,-150.0,0.00054627,7]
[312515183,1705938646472,-150.0,0.00054629,7]
[312515184,1705938646482,-150.0,0.00054665,7]
[312515185,1705938646491,-150.0,0.00054672,7]
[312515186,1705938646500,-150.0,0.00054686,7]
[312515187,1705938646510,-150.0,0.00054691,7]
[312515188,1705938646519,-150.0,0.00054696,7]
[312515189,1705938646528,-150.101,0.00054698,30]
[312515190,1705938646538,-150.101,0.00054698,30]
[312515191,1705938646547,-152.5171253,0.00054698,30]
[312515192,1705938646559,-150.0,0.00054699,7]
[312515193,1705938646568,-150.0,0.00054713,7]
[312515194,1705938646577,-150.0,0.00054715,7]
[312515195,1705938646586,-150.0,0.00054722,7]
[312515196,1705938646595,-150.0,0.00054733,7]
[312515197,1705938646605,-150.0,0.00054738,7]
[312515198,1705938646615,-250.0,0.0005477,7]
[312515199,1705938646625,-250.0,0.0005477,7]
[312515200,1705938646634,-500.0,0.00054778,5]
[312515201,1705938646643,-156.83,0.0005479,30]
[312515202,1705938646652,-195.68010101,0.0005479,30]
[312515203,1705938646662,-195.68010101,0.0005479,30]
[312515204,1705938646671,-195.68,0.0005479,30]
[312515206,1705938646681,-360.28881408,0.00054791,2]
[312515207,1705938646690,-2955.2307279,0.00054792,20]
[312515209,1705938646699,-1816.3,0.00054794,5]
[312515210,1705938646709,-151.0,0.00054794,7]
[312515211,1705938646719,-153.17949,0.00054794,120]
[312515212,1705938646729,-254.713257,0.00054794,120]
[312515213,1705938646738,-151.0,0.00054794,120]
[312515214,1705938646748,-151.0,0.00054794,120]
[312515216,1705938646758,-151.0,0.00054794,120]
[312515217,1705938646767,-151.0,0.00054794,120]
[312515218,1705938646777,-151.0,0.00054794,120]
[312515219,1705938646786,-151.0,0.00054794,120]
[312515220,1705938646795,-151.0,0.00054794,120]
[312515221,1705938646805,-181.192759,0.00054794,120]
[312515222,1705938646814,-181.192759,0.00054794,120]
[312515223,1705938646824,-363.77368344,0.00054794,45]
[312515224,1705938646834,-193.44310588,0.00054794,45]
[312515225,1705938646843,-969.16,0.00054794,120]
[312515226,1705938646853,-541.12805956,0.00054794,45]
[312515227,1705938646862,-500.0,0.00054794,120]
[312515228,1705938646871,-6399.14865017,0.00054794,45]
[312515229,1705938646881,-5000.0,0.00054794,120]
[312515230,1705938646890,-500.0,0.00054794,120]
[312515231,1705938646899,-500.0,0.00054794,30]
[312515232,1705938646909,-500.0,0.00054794,30]
[312515233,1705938646918,-1755.20277896,0.00054794,45]
[312515234,1705938646927,-500.0,0.00054794,120]
[312515235,1705938646937,-223.22186102,0.00054794,45]
[312515236,1705938646946,-246.26999733,0.00054794,45]
[312515237,1705938646956,-511.32746617,0.00054794,9]
[312515238,1705938646965,-500.0,0.00054794,120]
[312515239,1705938646975,-1231.34998666,0.00054794,45]
[312515240,1705938646985,-6417.53571662,0.00054794,45]
[312515241,1705938646995,-500.0,0.00054794,120]
[312515242,1705938647005,-500.0,0.00054794,120]
[312515243,1705938647014,-473.36082457,0.00054794,120]
[312515244,1705938647025,-510.96088892,0.00054794,120]
[312515245,1705938647034,-500.0,0.00054794,120]
[312515246,1705938647044,-500.0,0.00054794,120]
[312515247,1705938647053,-500.0,0.00054794,120]
[312515248,1705938647064,-500.0,0.00054794,120]
[312515249,1705938647073,-500.0,0.00054794,120]
[312515250,1705938647082,-500.0,0.00054794,120]
[312515251,1705938647092,-500.0,0.00054794,120]
[312515252,1705938647101,-500.0,0.00054794,120]
[312515253,1705938647111,-500.0,0.00054794,120]
[312515254,1705938647120,-500.0,0.00054794,120]
[312515255,1705938647129,-500.0,0.00054794,120]
[312515256,1705938647138,-500.0,0.00054794,120]
[312515257,1705938647148,-500.0,0.00054794,120]
[312515258,1705938647157,-507.10351548,0.00054794,120]
[312515259,1705938647166,-500.0,0.00054794,120]
[312515260,1705938647175,-500.0,0.00054794,120]
[312515261,1705938647184,-500.0,0.00054794,120]
[312515262,1705938647193,-500.0,0.00054794,120]
[312515263,1705938647202,-500.0,0.00054794,120]
[312515264,1705938647211,-500.0,0.00054794,120]
[312515265,1705938647221,-500.0,0.00054794,120]
[312515266,1705938647231,-500.0,0.00054794,120]
[312515267,1705938647240,-500.0,0.00054794,120]
[312515268,1705938647249,-500.0,0.00054794,120]
[312515269,1705938647258,-500.0,0.00054794,120]
[312515270,1705938647267,-500.0,0.00054794,120]
[312515271,1705938647277,-500.0,0.00054794,120]
[312515272,1705938647286,-500.0,0.00054794,120]
[312515273,1705938647295,-500.0,0.00054794,120]
[312515274,1705938647304,-500.0,0.00054794,120]
[312515275,1705938647316,-534.97187002,0.00054794,120]
[312515276,1705938647326,-500.0,0.00054794,120]
[312515277,1705938647335,-482.54350418,0.00054794,120]
[312515278,1705938647345,-500.0,0.00054794,120]
[312515279,1705938647354,-450.72890258,0.00054794,120]
[312515280,1705938647364,-500.0,0.00054794,120]
[312515281,1705938647374,-500.0,0.00054794,120]
[312515282,1705938647386,-500.0,0.00054794,120]
[312515283,1705938647395,-500.0,0.00054794,120]
[312515284,1705938647405,-500.0,0.00054794,120]
[312515285,1705938647414,-500.0,0.00054794,120]
[312515286,1705938647425,-500.0,0.00054794,120]
[312515287,1705938647434,-530.97732234,0.00054794,120]
[312515288,1705938647444,-500.0,0.00054794,120]
[312515289,1705938647454,-1000.0,0.00054794,2]
[312515290,1705938647464,-500.0,0.00054794,120]
[312515291,1705938647475,-500.0,0.00054794,120]
[312515292,1705938647486,-500.0,0.00054794,120]
[312515293,1705938647497,-500.0,0.00054794,120]
[312515294,1705938647507,-500.0,0.00054794,120]
[312515295,1705938647518,-500.0,0.00054794,120]
[312515296,1705938647528,-500.0,0.00054794,120]
[312515297,1705938647538,-500.0,0.00054794,120]
[312515298,1705938647548,-926.65,0.00054794,120]
[312515299,1705938647562,-500.0,0.00054794,120]
[312515300,1705938647575,-500.0,0.00054794,120]
[312515301,1705938647586,-519.92952192,0.00054794,120]
[312515302,1705938647597,-500.0,0.00054794,120]
[312515303,1705938647607,-500.0,0.00054794,120]
[312515304,1705938647618,-500.0,0.00054794,120]
[312515305,1705938647628,-415.89523778,0.00054794,10]
[312515306,1705938647639,-500.0,0.00054794,120]
[312515307,1705938647648,-500.0,0.00054794,120]
[312515308,1705938647664,-500.0,0.00054794,120]
[312515309,1705938647673,-500.0,0.00054794,120]
[312515310,1705938647683,-500.0,0.00054794,120]
[312515311,1705938647693,-500.0,0.00054794,120]
[312515312,1705938647703,-500.0,0.00054794,120]
[312515313,1705938647712,-500.0,0.00054794,120]
[312515314,1705938647722,-500.0,0.00054794,120]
[312515315,1705938647731,-500.0,0.00054794,120]
[312515316,1705938647741,-436.30144843,0.00054794,120]
[312515317,1705938647752,-500.0,0.00054794,120]
[312515318,1705938647762,-500.0,0.00054794,120]
[312515319,1705938647772,-500.0,0.00054794,120]
[312515320,1705938647782,-500.0,0.00054794,120]
[312515321,1705938647792,-500.0,0.00054794,120]